fUST/lending_fUST_20241111
["ID","MTS","AMOUNT","RATE_DAILY","PERIOD"]
[341857224,1731257442025,-500.0,0.00024931,2]
[341857225,1731257442034,-500.0,0.00024931,2]
[341857226,1731257442044,-217.19330586,0.00024931,2]
[341857227,1731257442053,-500.0,0.00024931,2]
[341857228,1731257442063,-500.0,0.00024931,2]
[341857229,1731257442072,-500.0,0.00024931,2]
[341857230,1731257442081,-500.0,0.00024931,2]
[341857231,1731257442091,-589.60649459,0.00024931,2]
[341857232,1731257442105,-500.0,0.00024931,2]
[341857233,1731257442114,-500.0,0.00024931,2]
[341857234,1731257442123,-500.0,0.00024931,2]
[341857235,1731257442133,-500.0,0.00024931,2]
[341857236,1731257442142,-500.0,0.00024931,2]
[341857237,1731257442152,-500.0,0.00024931,2]
[341857238,1731257442161,-500.0,0.00024931,2]
[341857239,1731257442170,-266.91835159,0.00024931,2]
[341857240,1731257442180,-500.0,0.00024931,2]
[341857241,1731257442190,-500.0,0.00024931,2]
[341857242,1731257442199,-250.0,0.00024931,2]
[341857243,1731257442208,-500.0,0.00024931,2]
[341857244,1731257442217,-500.0,0.00024931,2]
[341857245,1731257442226,-500.0,0.00024931,2]
[341857246,1731257442235,-1431.72,0.00024931,2]
[341857247,1731257442245,-500.0,0.00024931,2]
[341857248,1731257442254,-1385.96,0.00024931,2]
[341857249,1731257442263,-500.0,0.00024931,2]
[341857250,1731257442272,-500.0,0.00024931,2]
[341857251,1731257442281,-500.0,0.00024931,2]
[341857252,1731257442290,-500.0,0.00024931,2]
[341857253,1731257442299,-500.0,0.00024931,2]
[341857254,1731257442308,-500.0,0.00024931,2]
[341857255,1731257442318,-500.0,0.00024931,2]
[341857256,1731257442327,-469.34885829,0.00024931,2]
[341857257,1731257442335,-500.0,0.00024931,2]
[341857258,1731257442345,-500.0,0.00024931,2]
[341857259,1731257442356,-500.0,0.00024931,2]
[341857260,1731257442365,-527.86928005,0.00024931,2]
[341857261,1731257442375,-500.0,0.00024931,2]
[341857262,1731257442384,-500.0,0.00024931,2]
[341857263,1731257442393,-500.0,0.00024931,2]
[341857264,1731257442402,-500.0,0.00024931,2]
[341857265,1731257442411,-500.0,0.00024931,2]
[341857266,1731257442420,-500.0,0.00024931,2]
[341857267,1731257442430,-500.0,0.00024931,2]
[341857268,1731257442439,-500.0,0.00024931,2]
[341857269,1731257442448,-511.68019189,0.00024931,2]
[341857270,1731257442458,-500.0,0.00024931,2]
[341857271,1731257442467,-500.0,0.00024931,2]
[341857272,1731257442476,-500.0,0.00024931,2]
[341857273,1731257442486,-500.0,0.00024931,2]
[341857274,1731257442495,-500.0,0.00024931,2]
[341857275,1731257442503,-500.0,0.00024931,2]
[341857276,1731257442512,-500.0,0.00024931,2]
[341857277,1731257442521,-567.40718679,0.00024931,2]
[341857278,1731257442531,-500.0,0.00024931,2]
[341857279,1731257442540,-500.0,0.00024931,2]
[341857280,1731257442549,-558.54,0.00024931,2]
[341857281,1731257442558,-500.0,0.00024931,2]
[341857282,1731257442567,-500.0,0.00024931,2]
[341857283,1731257442576,-500.0,0.00024931,2]
[341857285,1731257442585,-195.50427352,0.00024931,2]
[341857287,1731257442595,-785.87,0.00024931,2]
[341857288,1731257442607,-500.0,0.00024931,2]
[341857289,1731257442616,-500.0,0.00024931,2]
[341857290,1731257442625,-500.0,0.00024931,2]
[341857291,1731257442634,-500.0,0.00024931,2]
[341857292,1731257442643,-500.0,0.00024931,2]
[341857293,1731257442654,-500.0,0.00024931,2]
[341857294,1731257442663,-500.0,0.00024931,2]
[341857295,1731257442672,-500.0,0.00024931,2]
[341857296,1731257442681,-500.0,0.00024931,2]
[341857297,1731257442691,-500.0,0.00024931,2]
[341857298,1731257442700,-500.0,0.00024931,2]
[341857299,1731257442709,-719.61,0.00024931,2]
[341857301,1731257442719,-530.71,0.00024931,2]
[341857303,1731257442728,-500.0,0.00024931,2]
[341857304,1731257442737,-500.0,0.00024931,2]
[341857305,1731257442746,-500.0,0.00024931,2]
[341857306,1731257442755,-500.0,0.00024931,2]
[341857307,1731257442764,-500.0,0.00024931,2]
[341857308,1731257442773,-500.0,0.00024931,2]
[341857309,1731257442783,-500.0,0.00024931,2]
[341857310,1731257442792,-500.0,0.00024931,2]
[341857311,1731257442801,-500.0,0.00024931,2]
[341857312,1731257442811,-500.0,0.00024931,2]
[341857313,1731257442820,-500.0,0.00024931,2]
[341857314,1731257442829,-500.0,0.00024931,2]
[341857315,1731257442838,-182.45188666,0.00024931,2]
[341857317,1731257442847,-500.0,0.00024931,2]
[341857318,1731257442857,-500.0,0.00024931,2]
[341857319,1731257442866,-527.49060341,0.00024931,2]
[341857320,1731257442876,-500.0,0.00024931,2]
[341857321,1731257442885,-500.0,0.00024931,2]
[341857322,1731257442894,-888.34,0.00024931,2]
[341857323,1731257442903,-189.93196546,0.00024931,2]
[341857324,1731257442912,-500.0,0.00024931,2]
[341857325,1731257442921,-500.0,0.00024931,2]
[341857326,1731257442930,-605.16,0.00024931,2]
[341857327,1731257442940,-500.0,0.00024931,2]
[341857328,1731257442949,-500.0,0.00024931,2]
[341857330,1731257442958,-892.4,0.00024931,2]
[341857332,1731257442967,-2336.0,0.00024931,2]
[341857334,1731257442977,-500.0,0.00024931,2]
[341857336,1731257442986,-500.0,0.00024931,2]
[341857338,1731257442996,-500.0,0.00024931,2]
[341857339,1731257443005,-500.0,0.00024931,2]
[341857341,1731257443015,-500.0,0.00024931,2]
[341857342,1731257443024,-500.0,0.00024931,2]
[341857343,1731257443033,-500.0,0.00024931,2]
[341857344,1731257443042,-500.0,0.00024931,2]
[341857345,1731257443051,-500.0,0.00024931,2]
[341857346,1731257443060,-500.0,0.00024931,2]
[341857347,1731257443070,-500.0,0.00024931,2]
[341857348,1731257443079,-500.0,0.00024931,2]
[341857349,1731257443088,-500.0,0.00024931,2]
[341857350,1731257443100,-500.0,0.00024931,2]
[341857351,1731257443110,-605.83,0.00024931,2]
[341857352,1731257443119,-5400.98,0.00024931,2]
[341857353,1731257443128,-500.0,0.00024931,2]
[341857354,1731257443138,-500.0,0.00024931,2]
[341857355,1731257443148,-500.0,0.00024931,2]
[341857356,1731257443157,-500.0,0.00024931,2]
[341857357,1731257443166,-500.0,0.00024931,2]
[341857358,1731257443177,-500.0,0.00024931,2]
[341857359,1731257443187,-500.0,0.00024931,2]
[341857360,1731257443197,-500.0,0.00024931,2]
[341857361,1731257443207,-500.0,0.00024931,2]
[341857362,1731257443216,-500.0,0.00024931,2]
[341857363,1731257443225,-500.0,0.00024931,2]
[341857364,1731257443234,-500.0,0.00024931,2]
[341857366,1731257443243,-500.0,0.00024931,2]
[341857367,1731257443252,-338.38782427,0.00024931,2]
[341857368,1731257443261,-500.0,0.00024931,2]
[341857370,1731257443270,-500.0,0.00024931,2]
[341857372,1731257443279,-500.0,0.00024931,2]
[341857373,1731257443288,-500.0,0.00024931,2]
[341857375,1731257443298,-1260.85,0.00024931,2]
[341857376,1731257443307,-500.0,0.00024931,2]
[341857377,1731257443316,-710.94,0.00024931,2]
[341857378,1731257443326,-500.0,0.00024931,2]
[341857379,1731257443335,-500.0,0.00024931,2]
[341857380,1731257443344,-500.0,0.00024931,2]
[341857381,1731257443356,-500.0,0.00024931,2]
[341857383,1731257443367,-500.0,0.00024931,2]
[341857385,1731257443376,-501.24471262,0.00024931,2]
[341857386,1731257443385,-500.0,0.00024931,2]
[341857387,1731257443394,-500.0,0.00024931,2]
[341857388,1731257443404,-500.0,0.00024931,2]
[341857389,1731257443413,-500.0,0.00024931,2]
[341857390,1731257443422,-717.77,0.00024931,2]
[341857391,1731257443432,-500.0,0.00024931,2]
[341857392,1731257443441,-263.73678836,0.00024931,2]
[341857393,1731257443451,-500.0,0.00024931,2]
[341857394,1731257443460,-500.0,0.00024931,2]
[341857395,1731257443469,-11209.15,0.00024931,2]
[341857396,1731257443479,-500.0,0.00024931,2]
[341857397,1731257443488,-500.0,0.00024931,2]
[341857398,1731257443498,-698.5,0.00024931,2]
[341857399,1731257443508,-187.8176419,0.00024931,2]
[341857400,1731257443517,-500.0,0.00024931,2]
[341857401,1731257443527,-500.0,0.00024931,2]
[341857402,1731257443536,-914.41,0.00024931,2]
[341857403,1731257443545,-500.0,0.00024931,2]
[341857404,1731257443554,-500.0,0.00024931,2]
[341857405,1731257443564,-996.8,0.00024931,2]
[341857406,1731257443573,-500.0,0.00024931,2]
[341857407,1731257443583,-500.0,0.00024931,2]
[341857408,1731257443592,-500.0,0.00024931,2]
[341857409,1731257443603,-502.05141123,0.00024931,2]
[341857410,1731257443612,-500.0,0.00024931,2]
[341857411,1731257443622,-500.0,0.00024931,2]
[341857412,1731257443631,-500.0,0.00024931,2]
[341857413,1731257443640,-500.0,0.00024931,2]
[341857414,1731257443649,-1104.83,0.00024931,2]
[341857415,1731257443658,-500.0,0.00024931,2]
[341857416,1731257443668,-356.99104601,0.00024931,2]
[341857417,1731257443677,-500.0,0.00024931,2]
[341857418,1731257443686,-1052.5,0.00024931,2]
[341857419,1731257443695,-503.8722551,0.00024931,2]
[341857420,1731257443705,-500.0,0.00024931,2]
[341857421,1731257443714,-1589.67,0.00024931,2]
[341857422,1731257443724,-500.0,0.00024931,2]
[341857423,1731257443733,-500.0,0.00024931,2]
[341857424,1731257443742,-2172.14,0.00024931,2]
[341857425,1731257443752,-500.0,0.00024931,2]
[341857426,1731257443761,-800.73,0.00024931,2]
[341857427,1731257443771,-500.0,0.00024931,2]
[341857428,1731257443781,-500.0,0.00024931,2]
[341857429,1731257443791,-2040.76,0.00024931,2]
[341857430,1731257443800,-530.04898993,0.00024931,2]
[341857431,1731257443809,-500.0,0.00024931,2]
[341857432,1731257443819,-500.0,0.00024931,2]
[341857433,1731257443827,-503.56537683,0.00024931,2]
[341857434,1731257443837,-500.0,0.00024931,2]
[341857435,1731257443846,-659.05,0.00024931,2]
[341857436,1731257443860,-500.0,0.00024931,2]
[341857437,1731257443869,-784.34,0.00024931,2]
[341857438,1731257443878,-500.0,0.00024931,2]
[341857439,1731257443887,-500.0,0.00024931,2]
[341857440,1731257443896,-500.0,0.00024931,2]
[341857441,1731257443905,-500.0,0.00024931,2]
[341857442,1731257443914,-500.0,0.00024931,2]
[341857443,1731257443923,-769.05,0.00024931,2]
[341857444,1731257443932,-315.98667134,0.00024931,2]
[341857445,1731257443942,-500.0,0.00024931,2]
[341857446,1731257443951,-676.42,0.00024931,2]
[341857447,1731257443961,-715.07,0.00024931,2]
[341857448,1731257443970,-500.0,0.00024973,2]
[341857449,1731257443980,-526.25020036,0.00024973,2]
[341857450,1731257443989,-500.0,0.00024973,2]
[341857451,1731257443999,-500.0,0.00024973,2]
[341857452,1731257444008,-500.0,0.00024973,2]
[341857453,1731257444018,-503.04776868,0.00024973,2]
[341857454,1731257444027,-50507.19531722,0.00025,2]
[341857455,1731257444037,-1533.7,0.00025,14]
[341857456,1731257444046,-1344.97,0.00025,14]
[341857457,1731257444055,-163.0,0.00025,2]
[341857458,1731257444064,-420.0,0.00025022,2]
[341857459,1731257444073,-1000.0,0.00025095,2]
[341857460,1731257444082,-1626.08817027,0.00025105,2]
[341857461,1731257444091,-594.26003017,0.00025105,2]
[341857462,1731257444105,-230.73,0.00025205,2]
[341857463,1731257444115,-430.27786186,0.00025205,2]
[341857464,1731257444124,-500.0,0.00025205,2]
[341857465,1731257444133,-500.0,0.00025205,2]
[341857466,1731257444144,-500.0,0.00025205,2]
[341857467,1731257444153,-500.0,0.00025205,2]
[341857468,1731257444163,-500.0,0.00025205,2]
[341857469,1731257444173,-500.0,0.00025205,2]
[341857470,1731257444183,-500.0,0.00025205,2]
[341857471,1731257444192,-500.0,0.00025205,2]
[341857472,1731257444201,-500.0,0.00025205,2]
[341857473,1731257444211,-500.0,0.00025205,2]
[341857474,1731257444220,-500.0,0.00025205,2]
[341857475,1731257444229,-500.0,0.00025205,2]
[341857476,1731257444239,-500.0,0.00025205,2]
[341857477,1731257444248,-500.0,0.00025205,2]
[341857478,1731257444258,-250.0,0.00025205,2]
[341857479,1731257444268,-500.0,0.00025205,2]
[341857480,1731257444277,-1431.72,0.00025205,2]
[341857481,1731257444286,-500.0,0.00025205,2]
[341857482,1731257444407,-1385.96,0.00025205,2]
[341857483,1731257444417,-500.0,0.00025205,2]
[341857484,1731257444427,-500.0,0.00025205,2]
[341857485,1731257444437,-378.2928583,0.00025205,2]
[341857486,1731257444446,-500.0,0.00025205,2]
[341857487,1731257444455,-500.0,0.00025205,2]
[341857488,1731257444464,-500.0,0.00025205,2]
[341857489,1731257444474,-500.0,0.00025205,2]
[341857490,1731257444483,-500.0,0.00025205,2]
[341857491,1731257444491,-500.0,0.00025205,2]
[341857492,1731257444501,-500.0,0.00025205,2]
[341857493,1731257444510,-500.0,0.00025205,2]
[341857494,1731257444519,-500.0,0.00025205,2]
[341857495,1731257444528,-500.0,0.00025205,2]
[341857496,1731257444537,-500.0,0.00025205,2]
[341857497,1731257444546,-500.0,0.00025205,2]
[341857498,1731257444555,-500.0,0.00025205,2]
[341857499,1731257444564,-500.0,0.00025205,2]
[341857500,1731257444573,-500.0,0.00025205,2]
[341857501,1731257444582,-500.0,0.00025205,2]
[341857502,1731257444591,-500.0,0.00025205,2]
[341857503,1731257444602,-500.0,0.00025205,2]
[341857504,1731257444612,-500.0,0.00025205,2]
[341857505,1731257444621,-558.54,0.00025205,2]
[341857506,1731257444631,-500.0,0.00025205,2]
[341857507,1731257444640,-500.0,0.00025205,2]
[341857508,1731257444649,-500.0,0.00025205,2]
[341857509,1731257444658,-785.87,0.00025205,2]
[341857510,1731257444667,-500.0,0.00025205,2]
[341857511,1731257444676,-500.0,0.00025205,2]
[341857512,1731257444684,-500.0,0.00025205,2]
[341857513,1731257444694,-500.0,0.00025205,2]
[341857514,1731257444703,-550.47116075,0.00025205,2]
[341857515,1731257444712,-500.0,0.00025205,2]
[341857516,1731257444722,-500.0,0.00025205,2]
[341857517,1731257444731,-173.11570067,0.00025205,2]
[341857518,1731257444740,-719.61,0.00025205,2]
[341857519,1731257444750,-530.71,0.00025205,2]
[341857520,1731257444759,-500.0,0.00025205,2]
[341857521,1731257444768,-500.0,0.00025205,2]
[341857522,1731257444777,-500.0,0.00025205,2]
[341857523,1731257444787,-500.0,0.00025205,2]
[341857524,1731257444797,-500.0,0.00025205,2]
[341857525,1731257444806,-500.0,0.00025205,2]
[341857526,1731257444816,-500.0,0.00025205,2]
[341857527,1731257444826,-500.0,0.00025205,2]
[341857528,1731257444835,-500.0,0.00025205,2]
[341857529,1731257444845,-500.0,0.00025205,2]
[341857530,1731257444860,-500.0,0.00025205,2]
[341857531,1731257444869,-500.0,0.00025205,2]
[341857532,1731257444878,-500.0,0.00025205,2]
[341857533,1731257444888,-888.34,0.00025205,2]
[341857534,1731257444897,-500.0,0.00025205,2]
[341857535,1731257444906,-500.0,0.00025205,2]
[341857536,1731257444916,-605.16,0.00025205,2]
[341857537,1731257444925,-500.0,0.00025205,2]
[341857538,1731257444934,-892.4,0.00025205,2]
[341857539,1731257444943,-2336.0,0.00025205,2]
[341857540,1731257444952,-500.0,0.00025205,2]
[341857541,1731257444962,-500.0,0.00025205,2]
[341857542,1731257444971,-500.0,0.00025205,2]
[341857543,1731257444980,-500.0,0.00025205,2]
[341857544,1731257444992,-500.0,0.00025205,2]
[341857545,1731257445002,-500.0,0.00025205,2]
[341857546,1731257445011,-501.26095141,0.00025205,2]
[341857547,1731257445022,-500.0,0.00025205,2]
[341857548,1731257445031,-500.0,0.00025205,2]
[341857549,1731257445040,-500.0,0.00025205,2]
[341857550,1731257445050,-500.0,0.00025205,2]
[341857551,1731257445060,-605.83,0.00025205,2]
[341857552,1731257445069,-5400.98,0.00025205,2]
[341857553,1731257445079,-500.0,0.00025205,2]
[341857554,1731257445089,-500.0,0.00025205,2]
[341857555,1731257445103,-500.0,0.00025205,2]
[341857556,1731257445113,-500.0,0.00025205,2]
[341857557,1731257445122,-500.0,0.00025205,2]
[341857558,1731257445131,-500.0,0.00025205,2]
[341857559,1731257445141,-500.0,0.00025205,2]
[341857560,1731257445151,-500.0,0.00025205,2]
[341857561,1731257445161,-500.0,0.00025205,2]
[341857562,1731257445170,-500.0,0.00025205,2]
[341857563,1731257445179,-500.0,0.00025205,2]
[341857564,1731257445190,-500.0,0.00025205,2]
[341857565,1731257445199,-500.0,0.00025205,2]
[341857566,1731257445209,-1260.85,0.00025205,2]
[341857567,1731257445218,-500.0,0.00025205,2]
[341857568,1731257445228,-710.94,0.00025205,2]
[341857569,1731257445238,-500.0,0.00025205,2]
[341857570,1731257445248,-500.0,0.00025205,2]
[341857571,1731257445257,-500.0,0.00025205,2]
[341857572,1731257445267,-500.0,0.00025205,2]
[341857573,1731257445276,-500.0,0.00025205,2]
[341857574,1731257445285,-500.0,0.00025205,2]
[341857575,1731257445295,-500.0,0.00025205,2]
[341857576,1731257445305,-515.84751369,0.00025205,2]
[341857577,1731257445315,-500.0,0.00025205,2]
[341857578,1731257445324,-717.77,0.00025205,2]
[341857579,1731257445334,-500.0,0.00025205,2]
[341857580,1731257445344,-500.0,0.00025205,2]
[341857581,1731257445356,-11209.15,0.00025205,2]
[341857582,1731257445365,-500.0,0.00025205,2]
[341857583,1731257445375,-500.0,0.00025205,2]
[341857584,1731257445384,-698.5,0.00025205,2]
[341857585,1731257445393,-218.1178685,0.00025205,2]
[341857586,1731257445403,-914.41,0.00025205,2]
[341857587,1731257445413,-500.0,0.00025205,2]
[341857588,1731257445422,-478.57877211,0.00025205,2]
[341857589,1731257445432,-996.8,0.00025205,2]
[341857590,1731257445441,-611.71064487,0.00025205,2]
[341857591,1731257445451,-500.0,0.00025205,2]
[341857592,1731257445461,-500.0,0.00025205,2]
[341857593,1731257445470,-500.0,0.00025205,2]
[341857594,1731257445479,-500.0,0.00025205,2]
[341857595,1731257445489,-500.0,0.00025205,2]
[341857596,1731257445499,-500.0,0.00025205,2]
[341857597,1731257445509,-1104.83,0.00025205,2]
[341857598,1731257445518,-500.0,0.00025205,2]
[341857599,1731257445527,-500.0,0.00025205,2]
[341857600,1731257445537,-1052.5,0.00025205,2]
[341857601,1731257445547,-500.0,0.00025205,2]
[341857602,1731257445556,-1589.67,0.00025205,2]
[341857603,1731257445566,-500.0,0.00025205,2]
[341857604,1731257445576,-295.54,0.00025205,2]
[341857605,1731257445585,-2172.14,0.00025205,2]
[341857606,1731257445595,-800.73,0.00025205,2]
[341857607,1731257445607,-500.0,0.00025205,2]
[341857608,1731257445616,-500.0,0.00025205,2]
[341857609,1731257445626,-2040.76,0.00025205,2]
[341857610,1731257445636,-500.0,0.00025205,2]
[341857611,1731257445646,-500.0,0.00025205,2]
[341857612,1731257445656,-659.05,0.00025205,2]
[341857613,1731257445665,-500.0,0.00025205,2]
[341857614,1731257445676,-784.34,0.00025205,2]
[341857615,1731257445685,-500.0,0.00025205,2]
[341857616,1731257445695,-500.0,0.00025205,2]
[341857617,1731257445704,-500.0,0.00025205,2]
[341857618,1731257445714,-769.05,0.00025205,2]
[341857619,1731257445724,-500.0,0.00025205,2]
[341857620,1731257445734,-676.42,0.00025205,2]
[341857621,1731257445743,-715.07,0.00025205,2]
[341857622,1731257445753,-500.02318707,0.0002523,2]
[341857624,1731257445763,-500.0,0.00025273,2]
[341857625,1731257445773,-500.0,0.00025273,2]
[341857626,1731257445783,-500.0,0.00025273,2]
[341857627,1731257445794,-170.893673,0.00025391,2]
[341857628,1731257445804,-218.6161685,0.00025478,2]
[341857629,1731257445814,-220.58854283,0.00025478,2]
[341857630,1731257445824,-500.0,0.00025478,2]
[341857631,1731257445833,-500.0,0.00025478,2]
[341857633,1731257445843,-384.22928157,0.00025478,2]
[341857635,1731257445853,-260.88877631,0.00025478,2]
[341857637,1731257445863,-377.1585107,0.00025478,2]
[341857639,1731257445873,-265.01076676,0.00025478,2]
[341857640,1731257445883,-607.51583518,0.00025478,2]
[341857642,1731257445893,-500.0,0.00025478,2]
[341857643,1731257445903,-500.0,0.00025479,2]
[341857645,1731257445912,-500.0,0.00025479,2]
[341857646,1731257445922,-500.0,0.00025479,2]
[341857647,1731257445932,-500.0,0.00025479,2]
[341857648,1731257445942,-500.0,0.00025479,2]
[341857649,1731257445952,-500.0,0.00025479,2]
[341857651,1731257445964,-500.0,0.00025479,2]
[341857652,1731257445974,-500.0,0.00025479,2]
[341857653,1731257445984,-1431.72,0.00025479,2]
[341857654,1731257445993,-500.0,0.00025479,2]
[341857655,1731257446006,-1385.96,0.00025479,2]
[341857657,1731257446016,-500.0,0.00025479,2]
[341857658,1731257446026,-527.81309326,0.00025479,2]
[341857659,1731257446036,-369.6015118,0.00025479,2]
[341857660,1731257446045,-199.35133926,0.00025479,2]
[341857661,1731257446055,-500.0,0.00025479,2]
[341857662,1731257446065,-500.0,0.00025479,2]
[341857663,1731257446074,-500.0,0.00025479,2]
[341857665,1731257446084,-500.0,0.00025479,2]
[341857667,1731257446093,-500.0,0.00025479,2]
[341857668,1731257446105,-500.0,0.00025479,2]
[341857669,1731257446115,-500.0,0.00025479,2]
[341857670,1731257446125,-500.0,0.00025479,2]
[341857671,1731257446135,-500.0,0.00025479,2]
[341857672,1731257446145,-500.0,0.00025479,2]
[341857673,1731257446154,-500.0,0.00025479,2]
[341857674,1731257446164,-500.0,0.00025479,2]
[341857675,1731257446174,-558.54,0.00025479,2]
[341857676,1731257446184,-500.0,0.00025479,2]
[341857677,1731257446194,-785.87,0.00025479,2]
[341857678,1731257446203,-500.0,0.00025479,2]
[341857679,1731257446213,-500.0,0.00025479,2]
[341857680,1731257446222,-500.0,0.00025479,2]
[341857681,1731257446232,-500.0,0.00025479,2]
[341857682,1731257446242,-500.0,0.00025479,2]
[341857683,1731257446251,-719.61,0.00025479,2]
[341857684,1731257446261,-530.71,0.00025479,2]
[341857685,1731257446271,-500.0,0.00025479,2]
[341857686,1731257446282,-500.0,0.00025479,2]
[341857687,1731257446291,-500.0,0.00025479,2]
[341857688,1731257446301,-389.4405894,0.00025479,2]
[341857689,1731257446311,-500.0,0.00025479,2]
[341857690,1731257446321,-546.56429739,0.00025479,2]
[341857691,1731257446332,-500.0,0.00025479,2]
[341857692,1731257446341,-500.0,0.00025479,2]
[341857693,1731257446351,-888.34,0.00025479,2]
[341857694,1731257446362,-500.0,0.00025479,2]
[341857695,1731257446372,-605.16,0.00025479,2]
[341857696,1731257446382,-892.4,0.00025479,2]
[341857697,1731257446392,-2336.0,0.00025479,2]
[341857698,1731257446402,-500.0,0.00025479,2]
[341857699,1731257446411,-500.0,0.00025479,2]
[341857700,1731257446421,-500.0,0.00025479,2]
[341857701,1731257446431,-500.0,0.00025479,2]
[341857702,1731257446441,-452.41000001,0.00025479,2]
[341857703,1731257446450,-500.0,0.00025479,2]
[341857704,1731257446460,-500.0,0.00025479,2]
[341857705,1731257446470,-352.17050358,0.00025479,2]
[341857706,1731257446672,-147.82949642,0.00025479,2]
[341857707,1731257446683,-500.0,0.00025479,2]
[341857708,1731257446693,-605.83,0.00025479,2]
[341857709,1731257446702,-5400.98,0.00025479,2]
[341857710,1731257446713,-500.0,0.00025479,2]
[341857711,1731257446723,-500.0,0.00025479,2]
[341857712,1731257446733,-500.0,0.00025479,2]
[341857713,1731257446743,-500.0,0.00025479,2]
[341857714,1731257446752,-500.0,0.00025479,2]
[341857715,1731257446762,-500.0,0.00025479,2]
[341857716,1731257446772,-500.0,0.00025479,2]
[341857717,1731257446913,-500.0,0.00025479,2]
[341857718,1731257446924,-500.0,0.00025479,2]
[341857719,1731257446936,-500.0,0.00025479,2]
[341857720,1731257446947,-1260.85,0.00025479,2]
[341857721,1731257446960,-710.94,0.00025479,2]
[341857722,1731257446970,-500.0,0.00025479,2]
[341857723,1731257446981,-500.0,0.00025479,2]
[341857724,1731257446991,-500.0,0.00025479,2]
[341857725,1731257447002,-500.0,0.00025479,2]
[341857726,1731257447012,-445.98387988,0.00025479,2]
[341857727,1731257447692,-520.83333333,0.00022297,2]
[341857728,1731257447702,-500.0,0.00024657,2]
[341857729,1731257447711,-500.0,0.00024657,2]
[341857730,1731257447721,-500.0,0.00024931,2]
[341857731,1731257447732,-54.01612012,0.00025479,2]
[341857732,1731257447741,-500.0,0.00025479,2]
[341857733,1731257447751,-717.77,0.00025479,2]
[341857734,1731257447760,-393.21286492,0.00025479,2]
[341857735,1731257447772,-106.78713508,0.00025479,2]
[341857736,1731257447782,-500.0,0.00025479,2]
[341857737,1731257447792,-477.49372076,0.00025479,2]
[341857738,1731257447803,-7007.45698114,0.00025479,2]
[341857739,1731257447815,-3724.1992981,0.00025479,2]
[341857740,1731257447824,-500.0,0.00025479,2]
[341857741,1731257447833,-500.0,0.00025479,2]
[341857742,1731257447843,-698.5,0.00025479,2]
[341857743,1731257447852,-914.41,0.00025479,2]
[341857744,1731257447862,-500.0,0.00025479,2]
[341857745,1731257447871,-996.8,0.00025479,2]
[341857746,1731257447880,-500.0,0.00025479,2]
[341857747,1731257447889,-500.0,0.00025479,2]
[341857748,1731257447898,-308.57579773,0.00025479,2]
[341857749,1731257447914,-191.42420227,0.00025479,2]
[341857750,1731257447923,-500.0,0.00025479,2]
[341857751,1731257447932,-1104.83,0.00025479,2]